bitfinex-derivatives/quotes_BNBF0:USTF0_20250220
["timestamp","ask_amount","ask_price","bid_price","bid_amount"]
[1740088096023,2.21675003,653.72,653.49,0.30604905]
[1740088096221,2.97609212,653.71,653.49,0.30604905]
[1740088096420,2.97609212,653.7,653.49,0.30604905]
[1740088096621,2.97609212,653.69,653.49,0.30604905]
[1740088096922,2.21675003,653.72,653.49,0.30604905]
[1740088097121,2.97539194,653.71,653.49,0.30604905]
[1740088097315,2.97539194,653.7,653.49,0.30604905]
[1740088097514,2.97539194,653.69,653.49,0.30604905]
[1740088097719,2.97539194,653.68,653.49,0.30604905]
[1740088097920,2.97415627,653.67,653.15,1.13863774]
[1740088098122,2.97411414,653.66,653.15,1.13863774]
[1740088098318,2.97411414,653.65,653.15,1.13863774]
[1740088098523,2.97411414,653.64,653.15,1.13863774]
[1740088098724,2.97411414,653.63,653.15,1.13863774]
[1740088098927,2.97411414,653.62,653.15,1.13863774]
[1740088099120,2.97411414,653.61,653.15,1.13863774]
[1740088099318,2.9723121,653.6,653.15,1.13863774]
[1740088099624,2.21675003,653.61,653.06,1.59636079]
[1740088099625,2.9723121,653.59,653.06,1.59636079]
[1740088099922,2.21675003,653.61,653.06,1.59636079]
[1740088099923,2.9723121,653.58,653.07,0.30624588]
[1740088100122,2.9723121,653.57,653.07,0.30624588]
[1740088100322,2.9723121,653.56,653.07,0.30624588]
[1740088100519,2.9723121,653.55,653.07,0.30624588]
[1740088100720,2.9723121,653.54,653.07,0.30624588]
[1740088100924,2.21675003,653.54,653.07,0.30624588]
[1740088102721,3.844,653.81,653.07,0.30624588]
[1740088102925,2.96753704,653.8,653.07,0.30624588]
[1740088103126,2.96753704,653.79,653.07,0.30624588]
[1740088103325,2.96753704,653.78,653.07,0.30624588]
[1740088103624,2.96753704,653.77,653.07,0.30624588]
[1740088103826,2.96753704,653.76,653.07,0.30624588]
[1740088104019,2.96753704,653.75,653.07,0.30624588]
[1740088104218,2.96753704,653.74,653.07,0.30624588]
[1740088104423,2.96753704,653.73,653.07,0.30624588]
[1740088104621,2.96753704,653.72,653.07,0.30624588]
[1740088104822,2.96753704,653.71,653.07,0.30624588]
[1740088105020,2.96753704,653.7,653.07,0.30624588]
[1740088105225,2.96753704,653.69,653.07,0.30624588]
[1740088105425,2.96753704,653.68,653.07,0.30624588]
[1740088105625,2.96753704,653.67,653.07,0.30624588]
[1740088105825,2.20781116,653.71,653.07,0.30624588]
[1740088105826,2.96753704,653.66,653.07,0.30624588]
[1740088106021,2.96753704,653.65,653.07,0.30624588]
[1740088106229,2.96753704,653.64,653.07,0.30624588]
[1740088106429,2.96753704,653.63,653.07,0.30624588]
[1740088106627,2.96753704,653.62,653.07,0.30624588]
[1740088106829,2.96753704,653.61,653.07,0.30624588]
[1740088107127,5.1753482,653.6,653.07,0.30624588]
[1740088107326,2.96753704,653.59,653.07,0.30624588]
[1740088107523,2.96753704,653.58,653.07,0.30624588]
[1740088107828,2.96753704,653.57,653.07,0.30624588]
[1740088108029,2.96753704,653.56,653.07,0.30624588]
[1740088108328,2.96753704,653.55,653.07,0.30624588]
[1740088108529,2.96259055,653.54,653.07,0.30624588]
[1740088108828,2.96259055,653.53,653.07,0.30624588]
[1740088109028,2.20781116,653.6,653.07,0.30624588]
[1740088109228,2.96251225,653.59,653.07,0.30624588]
[1740088109428,2.96251225,653.58,653.07,0.30624588]
[1740088109626,2.96251225,653.57,653.07,0.30624588]
[1740088109827,2.96251225,653.56,653.07,0.30624588]
[1740088110029,2.20781116,653.58,653.07,0.30624588]
[1740088110329,2.96174757,653.57,653.07,0.30624588]
[1740088110530,2.20781116,653.58,653.07,0.30624588]
[1740088110830,2.96147058,653.57,653.07,0.30624588]
[1740088111033,2.20781116,653.58,653.07,0.30624588]
[1740088111427,3.844,653.81,653.07,0.30624588]
[1740088111630,2.9613419,653.8,653.07,0.30624588]
[1740088111832,2.9613419,653.79,653.07,0.30624588]
[1740088112024,2.9613419,653.78,653.07,0.30624588]
[1740088112228,2.9613419,653.77,653.07,0.30624588]
[1740088112529,2.9613419,653.76,653.07,0.30624588]
[1740088112727,2.9613419,653.75,653.07,0.30624588]
[1740088112925,2.9613419,653.74,653.07,0.30624588]
[1740088113129,2.9613419,653.73,653.07,0.30624588]
[1740088113329,2.9613419,653.72,653.07,0.30624588]
[1740088113529,2.9613419,653.71,653.07,0.30624588]
[1740088113727,2.9613419,653.7,653.07,0.30624588]
[1740088113928,2.9613419,653.69,653.07,0.30624588]
[1740088114131,2.9613419,653.68,653.07,0.30624588]
[1740088114329,2.9613419,653.67,653.07,0.30624588]
[1740088114535,2.9613419,653.66,653.07,0.30624588]
[1740088114734,2.9613419,653.65,653.07,0.30624588]
[1740088114935,2.9613419,653.64,653.07,0.30624588]
[1740088115137,2.9613419,653.63,653.07,0.30624588]
[1740088115438,2.9613419,653.62,653.07,0.30624588]
[1740088115736,2.9613419,653.61,653.07,0.30624588]
[1740088115936,2.9613419,653.6,653.07,0.30624588]
[1740088116135,2.20314674,653.66,653.07,0.30624588]
[1740088116136,2.9613419,653.59,653.07,0.30624588]
[1740088116338,2.9613419,653.58,653.07,0.30624588]
[1740088116636,2.9613419,653.57,653.07,0.30624588]
[1740088116836,2.9613419,653.56,653.07,0.30624588]
[1740088117037,2.9613419,653.55,653.07,0.30624588]
[1740088117238,2.9613419,653.54,653.07,0.30624588]
[1740088117438,2.20314674,653.57,653.07,0.30624588]
[1740088117639,2.95948556,653.56,653.07,0.30624588]
[1740088117936,2.95948556,653.55,653.07,0.30624588]
[1740088118138,2.95948556,653.54,653.07,0.30624588]
[1740088118337,2.95948556,653.53,653.07,0.30624588]
[1740088118539,2.95948556,653.52,653.07,0.30624588]
[1740088118733,2.20314674,653.57,653.07,0.30624588]
[1740088118939,2.95940827,653.56,653.07,0.30624588]
[1740088119140,2.95940827,653.55,653.07,0.30624588]
[1740088119333,2.95940827,653.54,653.07,0.30624588]
[1740088119538,2.95940827,653.53,653.07,0.30624588]
[1740088119738,5.16105766,653.52,653.07,0.30624588]
[1740088119936,2.20164939,653.52,653.07,0.30624588]
[1740088120534,2.95909113,653.51,653.07,0.30624588]
[1740088120735,2.95909113,653.5,653.07,0.30624588]
[1740088120940,2.20164939,653.52,653.07,0.30624588]
[1740088121137,5.1607448,653.51,653.07,0.30624588]
[1740088121341,2.95909541,653.5,653.07,0.30624588]
[1740088121641,2.20164939,653.51,653.07,0.30624588]
[1740088123236,1.563,653.76,653.07,0.30624588]
[1740088123440,2.9589509,653.75,653.07,0.30624588]
[1740088123642,2.9589509,653.74,653.07,0.30624588]
[1740088123936,2.9589509,653.73,653.07,0.30624588]
[1740088124139,2.9589509,653.72,653.07,0.30624588]
[1740088124335,2.9589509,653.71,653.07,0.30624588]
[1740088124538,2.9589509,653.7,653.07,0.30624588]
[1740088124740,2.9589509,653.69,653.07,0.30624588]
[1740088124941,2.9589509,653.68,653.07,0.30624588]
[1740088125136,2.9589509,653.67,653.07,0.30624588]
[1740088125335,2.9589509,653.66,653.07,0.30624588]
[1740088125535,2.9589509,653.65,653.07,0.30624588]
[1740088125736,2.9589509,653.64,653.07,0.30624588]
[1740088125944,2.9589509,653.63,653.07,0.30624588]
[1740088126143,2.9589509,653.62,653.07,0.30624588]
[1740088126442,2.20131622,653.67,653.07,0.30624588]
[1740088127041,2.15,653.76,653.07,0.30624588]
[1740088128439,1.13768997,654.45,653.07,0.30624588]
[1740088129147,2.19838059,654.44,653.07,0.30624588]
[1740088129350,2.95584307,654.43,653.07,0.30624588]
[1740088129648,2.95584307,654.42,653.07,0.30624588]
[1740088129948,4.68184307,654.41,653.07,0.30624588]
[1740088130142,2.95584307,654.4,653.07,0.30624588]
[1740088130342,2.95584307,654.39,653.07,0.30624588]
[1740088130548,2.352,654.41,653.07,0.30624588]
[1740088130942,2.19838059,654.4,653.07,0.30624588]
[1740088132550,2.19838059,654.39,653.07,0.30624588]
[1740088133544,2.9527135,654.38,653.07,0.30624588]
[1740088133850,2.9527135,654.37,653.07,0.30624588]
[1740088134053,2.9527135,654.36,653.07,0.30624588]
[1740088134242,2.9527135,654.35,653.07,0.30624588]
[1740088134442,2.9527135,654.34,653.07,0.30624588]
[1740088134645,2.9527135,654.33,653.07,0.30624588]
[1740088134851,2.95225399,654.32,653.07,0.30624588]
[1740088135151,2.19838059,654.33,653.07,0.30624588]
[1740088136049,2.19838059,654.32,653.07,0.30624588]
[1740088137551,2.19838059,654.31,653.07,0.30624588]
[1740088139145,5.14850696,654.3,653.07,0.30624588]
[1740088139347,2.95012637,654.29,653.07,0.30624588]
[1740088139551,2.19838059,654.3,653.07,0.30624588]
[1740088139752,2.94969825,654.29,653.07,0.30624588]
[1740088139953,2.19838059,654.3,653.07,0.30624588]
[1740088140851,2.19838059,654.29,653.07,0.30624588]
[1740088141652,2.94923152,654.28,653.07,0.30624588]
[1740088141854,2.94923152,654.27,653.07,0.30624588]
[1740088142055,2.94923152,654.26,653.07,0.30624588]
[1740088142251,2.19838059,654.29,653.07,0.30624588]
[1740088142252,1.86,654.28,653.07,0.30624588]
[1740088142551,2.19838059,654.25,653.07,0.30624588]
[1740088142755,2.94880901,654.24,653.07,0.30624588]
[1740088142958,2.94880901,654.23,653.07,0.30624588]
[1740088143158,2.19838059,654.25,653.07,0.30624588]
[1740088143350,2.94868445,654.24,653.07,0.30624588]
[1740088143554,2.94868445,654.23,653.07,0.30624588]
[1740088143755,2.94868445,654.22,653.07,0.30624588]
[1740088144058,5.14706504,654.21,653.07,0.30624588]
[1740088144258,2.94868445,654.2,653.07,0.30624588]
[1740088144454,2.19838059,654.21,653.07,0.30624588]
[1740088144656,2.94835711,654.2,653.07,0.30624588]
[1740088144953,2.94835711,654.19,653.07,0.30624588]
[1740088145158,2.94835711,654.18,653.07,0.30624588]
[1740088145358,2.19838059,654.21,653.07,0.30624588]
[1740088145658,2.94806669,654.2,653.07,0.30624588]
[1740088145860,2.94806669,654.19,653.07,0.30624588]
[1740088146158,2.94806669,654.18,653.07,0.30624588]
[1740088146354,2.94806669,654.17,653.07,0.30624588]
[1740088146659,2.19838059,654.2,653.07,0.30624588]
[1740088147759,2.19838059,654.19,653.07,0.30624588]
[1740088148558,2.94785023,654.18,653.07,0.30624588]
[1740088148758,2.94785023,654.17,653.07,0.30624588]
[1740088148963,2.19838059,654.19,653.07,0.30624588]
[1740088149162,2.9477725,654.18,653.07,0.30624588]
[1740088149361,2.19838059,654.19,653.07,0.30624588]
[1740088149658,2.19838059,654.17,653.07,0.30624588]
[1740088151563,2.19838059,654.16,653.07,0.30624588]
[1740088152862,2.19838059,654.15,653.07,0.30624588]
[1740088153959,2.94701055,654.14,653.07,0.30624588]
[1740088154164,2.94701055,654.13,653.07,0.30624588]
[1740088154464,2.94716056,654.12,653.07,0.30624588]
[1740088154660,2.19838059,654.12,653.07,0.30624588]
[1740088157062,2.19838059,654.11,653.07,0.30624588]
[1740088158863,2.94662741,654.1,653.07,0.30624588]
[1740088159063,2.19838059,654.09,653.07,0.30624588]
[1740088160969,2.19838059,654.08,653.07,0.30624588]
[1740088161370,2.19838059,654.08,653.07,1.44488362]
[1740088162866,1.677,654.18,653.07,1.44488362]
[1740088163068,1.677,654.18,653.16,1.13863774]
[1740088163266,1.677,654.18,653.18,0.30619431]
[1740088163465,2.19245421,654.17,653.18,0.30619431]
[1740088165269,2.19245421,654.16,653.18,0.30619431]
[1740088165864,2.19245421,654.16,653.32,1.13863774]
[1740088166266,2.19245421,654.16,653.34,0.30611932]
[1740088166869,1.677,654.18,653.34,0.30611932]
[1740088167575,2.1930262,654.17,653.34,0.30611932]
[1740088168777,2.94886154,654.16,653.44,1.13863774]
[1740088169069,2.94886154,654.15,653.45,0.30606779]
[1740088169274,2.94886154,654.14,653.45,0.30606779]
[1740088169467,2.1930262,654.15,653.45,0.30606779]
[1740088169672,2.94896627,654.14,653.45,0.30606779]
[1740088169873,2.1930262,654.15,653.45,0.30606779]
[1740088171476,1.677,654.18,653.45,0.30606779]
[1740088171871,1.677,654.18,653.64,1.13863774]
[1740088172070,1.677,654.18,653.65,0.30597414]
[1740088174870,2.95032523,654.17,653.65,0.30597414]
[1740088175070,1.677,654.18,653.65,0.30597414]
[1740088175271,2.19430535,654.17,653.65,0.30597414]
[1740088177180,1.677,654.18,653.65,0.30597414]
[1740088181883,1.727,654.31,653.65,0.30597414]
[1740088182082,2.95757838,654.3,653.65,0.30597414]
[1740088182282,2.95757838,654.29,653.65,0.30597414]
[1740088182483,2.95757838,654.28,653.65,0.30597414]
[1740088182782,2.95757838,654.27,653.65,0.30597414]
[1740088182984,2.95757838,654.26,653.65,0.30597414]
[1740088183179,2.95757838,654.25,653.65,0.30597414]
[1740088183379,2.95757838,654.24,653.65,0.30597414]
[1740088183581,2.95757838,654.23,653.65,0.30597414]
[1740088183882,2.95757838,654.22,653.65,0.30597414]
[1740088184084,2.95757838,654.21,653.65,0.30597414]
[1740088184384,2.95757838,654.2,653.65,0.30597414]
[1740088184583,2.95757838,654.19,653.65,0.30597414]
[1740088184779,2.19965793,654.21,653.65,0.30597414]
[1740088185083,2.96321884,654.2,653.65,0.30597414]
[1740088185277,2.96321884,654.19,653.65,0.30597414]
[1740088185480,2.19965793,654.21,653.65,0.30597414]
[1740088185681,2.96622765,654.2,653.65,0.30597414]
[1740088185878,2.96622765,654.19,653.65,0.30597414]
[1740088186182,2.19965793,654.21,653.65,0.30597414]
[1740088186384,2.96623827,654.2,653.65,0.30597414]
[1740088186583,2.96623827,654.19,653.65,0.30597414]
[1740088186882,2.19965793,654.19,653.65,0.30597414]
[1740088188483,4.107,654.51,653.65,0.30597414]
[1740088188683,2.97120045,654.5,653.65,0.30597414]
[1740088188885,2.97120045,654.49,653.65,0.30597414]
[1740088189183,2.97120045,654.48,653.65,0.30597414]
[1740088189385,2.97120045,654.47,653.65,0.30597414]
[1740088189586,2.97120045,654.46,653.65,0.30597414]
[1740088189785,2.97120045,654.45,653.65,0.30597414]
[1740088189985,2.97120045,654.44,653.65,0.30597414]
[1740088190181,2.97120045,654.43,653.65,0.30597414]
[1740088190386,2.97120045,654.42,653.65,0.30597414]
[1740088190586,2.97120045,654.41,653.65,0.30597414]
[1740088190788,2.97120045,654.4,653.65,0.30597414]
[1740088190988,2.97120045,654.39,653.65,0.30597414]
[1740088191188,2.97120045,654.38,653.65,0.30597414]
[1740088191391,2.97120045,654.37,653.65,0.30597414]
[1740088191585,2.97120045,654.36,653.65,0.30597414]
[1740088191787,2.97120045,654.35,653.65,0.30597414]
[1740088191989,2.97120045,654.34,653.65,0.30597414]
[1740088192184,2.97120045,654.33,653.65,0.30597414]
[1740088192388,2.97120045,654.32,653.65,0.30597414]
[1740088192587,2.20980381,654.34,653.65,0.30597414]
[1740088192588,2.97120045,654.31,653.65,0.30597414]
[1740088192786,2.97120045,654.3,653.65,0.30597414]
[1740088192989,2.97120045,654.29,653.65,0.30597414]
[1740088193192,2.97120045,654.28,653.65,0.30597414]
[1740088193393,2.20980381,654.31,653.65,0.30597414]
[1740088193587,2.96973158,654.3,653.65,0.30597414]
[1740088193789,2.20980381,654.31,653.65,0.30597414]
[1740088193987,2.9697019,654.3,653.65,0.30597414]
[1740088194293,2.20980381,654.31,653.65,0.30597414]
[1740088194294,2.9697019,654.29,653.65,0.30597414]
[1740088194487,2.9697019,654.28,653.65,0.30597414]
[1740088194694,2.9697019,654.27,653.65,0.30597414]
[1740088194894,2.20980381,654.28,653.65,0.30597414]
[1740088195195,2.96917019,654.27,653.65,0.30597414]
[1740088195396,2.20980381,654.28,653.65,0.30597414]
[1740088195695,2.96905831,654.27,653.65,0.30597414]
[1740088195994,2.20980381,654.28,653.65,0.30597414]
[1740088196195,2.96906305,654.27,653.65,0.30597414]
[1740088196389,1.247,654.38,653.65,0.30597414]
[1740088196592,2.96874026,654.37,653.65,0.30597414]
[1740088196888,5.17660027,654.36,653.65,0.30597414]
[1740088197091,2.96874026,654.35,653.65,0.30597414]
[1740088197294,2.96874026,654.34,653.65,0.30597414]
[1740088197491,2.96874026,654.33,653.65,0.30597414]
[1740088197689,2.96874026,654.32,653.65,0.30597414]
[1740088197989,2.96874026,654.31,653.65,0.30597414]
[1740088198196,2.96874026,654.3,653.65,0.30597414]
[1740088198394,2.96874026,654.29,653.65,0.30597414]
[1740088198589,2.96874026,654.28,653.65,0.30597414]
[1740088198795,2.96874026,654.27,653.65,0.30597414]
[1740088198997,2.96874026,654.26,653.65,0.30597414]
[1740088199197,2.96874026,654.25,653.65,0.30597414]
[1740088199399,2.96874026,654.24,653.65,0.30597414]
[1740088199593,2.96874026,654.23,653.65,0.30597414]
[1740088199800,2.20786001,654.28,653.65,0.30597414]
[1740088200001,2.96822862,654.27,653.65,0.30597414]
[1740088200300,2.96822862,654.26,653.65,0.30597414]
[1740088200598,2.96822862,654.25,653.65,0.30597414]
[1740088200799,2.96822862,654.24,653.65,0.30597414]
[1740088201002,2.96822862,654.23,653.65,0.30597414]
[1740088201304,2.20786001,654.26,653.65,0.30597414]
[1740088201603,2.96813258,654.25,653.65,0.30597414]
[1740088201804,2.96813258,654.24,653.65,0.30597414]
[1740088202002,2.96813258,654.23,653.65,0.30597414]
[1740088202202,2.96813258,654.22,653.65,0.30597414]
[1740088202397,2.96813258,654.21,653.65,0.30597414]
[1740088202598,2.96813258,654.2,653.65,0.30597414]
[1740088202799,2.96813258,654.19,653.65,0.30597414]
[1740088203002,2.96813258,654.18,653.65,0.30597414]
[1740088203202,2.96813258,654.17,653.65,0.30597414]
[1740088203398,2.96813258,654.16,653.65,0.30597414]
[1740088203600,2.96813258,654.15,653.65,0.30597414]
[1740088203801,2.20786001,654.2,653.65,0.30597414]
[1740088204001,2.96843585,654.19,653.65,0.30597414]
[1740088204205,2.96843585,654.18,653.65,0.30597414]
[1740088204506,2.96843585,654.17,653.65,0.30597414]
[1740088204705,2.96843585,654.16,653.65,0.30597414]
[1740088204900,2.96843585,654.15,653.65,0.30597414]
[1740088205100,2.20786001,654.17,653.65,0.30597414]
[1740088206202,1.247,654.38,653.65,0.30597414]
[1740088206408,2.96820005,654.37,653.65,0.30597414]
[1740088206708,2.96820005,654.36,653.71,1.13863774]
[1740088207007,2.96820005,654.35,653.72,0.30594138]
[1740088207208,2.96820005,654.34,653.72,0.30594138]
[1740088207408,2.96820005,654.33,653.72,0.30594138]
[1740088207605,2.96820005,654.32,653.72,0.30594138]
[1740088207809,2.96820005,654.31,653.72,0.30594138]
[1740088208010,2.96820005,654.3,653.72,0.30594138]
[1740088208204,2.96820005,654.29,653.72,0.30594138]
[1740088208406,2.96820005,654.28,653.72,0.30594138]
[1740088208609,2.96820005,654.27,653.72,0.30594138]
[1740088208806,2.96820005,654.26,653.72,0.30594138]
[1740088209113,2.96820005,654.25,653.76,1.13863774]
[1740088209309,2.96820005,654.24,653.76,1.4445604]
[1740088209509,2.20755923,654.27,653.76,1.4445604]
[1740088209510,2.96820005,654.23,653.76,1.4445604]
[1740088209706,2.96820005,654.22,653.76,1.4445604]
[1740088209907,2.96820005,654.21,653.76,1.4445604]
[1740088210108,5.17575928,654.2,653.76,1.4445604]
[1740088210313,2.96820005,654.19,653.76,1.4445604]
[1740088210513,2.96820005,654.18,653.76,1.4445604]
[1740088210713,2.20755923,654.2,653.76,1.4445604]
[1740088210906,2.20755923,654.2,653.76,0.30592266]
[1740088210907,2.96924503,654.19,653.76,0.30592266]
[1740088211108,2.96924503,654.18,653.76,0.30592266]
[1740088211305,2.20755923,654.2,653.76,0.30592266]
[1740088211508,2.96963966,654.19,653.76,0.30592266]
[1740088211705,2.96963966,654.18,653.76,0.30592266]
[1740088211914,2.20755923,654.18,653.76,0.30592266]
[1740088214115,1.247,654.38,653.76,0.30592266]
[1740088214413,2.97017172,654.37,653.76,0.30592266]
[1740088214611,2.97017172,654.36,653.76,0.30592266]
[1740088214815,2.97017172,654.35,653.76,0.30592266]
[1740088215015,2.97017172,654.34,653.76,0.30592266]
[1740088215216,2.97017172,654.33,653.76,0.30592266]
[1740088215515,2.20898985,654.36,653.76,0.30592266]
[1740088215516,2.97017172,654.32,653.76,0.30592266]
[1740088215716,2.97017172,654.31,653.76,0.30592266]
[1740088215914,2.20898985,654.36,653.76,0.30592266]
[1740088216114,2.97001153,654.35,653.76,0.30592266]
[1740088216315,2.97001153,654.34,653.76,0.30592266]
[1740088216509,2.20898985,654.36,653.76,0.30592266]
[1740088216716,2.9700393,654.35,653.76,0.30592266]
[1740088216916,1.247,654.38,653.76,0.30592266]
[1740088217108,2.97001546,654.37,653.76,0.30592266]
[1740088217313,2.97001546,654.36,653.76,0.30592266]
[1740088217515,2.97001546,654.35,653.76,0.30592266]
[1740088217709,2.97001546,654.34,653.76,0.30592266]
[1740088217912,2.97001546,654.33,653.76,0.30592266]
[1740088218214,2.97001546,654.32,653.77,1.13863774]
[1740088218419,2.97072916,654.31,653.78,0.3059133]
[1740088218712,2.97061217,654.3,653.78,0.3059133]
[1740088218917,2.20897346,654.33,653.78,0.3059133]
[1740088219113,2.97058475,654.32,653.78,0.3059133]
[1740088219317,2.97058475,654.31,653.78,0.3059133]
[1740088219514,2.97058475,654.3,653.78,0.3059133]
[1740088219818,2.97058475,654.29,653.78,0.3059133]
[1740088220017,2.97058475,654.28,653.78,0.3059133]
[1740088220219,2.20897346,654.28,653.82,1.13863774]
[1740088220418,2.20897346,654.28,653.83,0.30588991]
[1740088220620,2.9716611,654.27,653.83,0.30588991]
[1740088220820,2.97170941,654.26,653.83,0.30588991]
[1740088221020,2.20897346,654.28,653.83,0.30588991]
[1740088221220,2.97228949,654.27,653.83,0.30588991]
[1740088221415,2.97228949,654.26,653.83,0.30588991]
[1740088221615,2.20897346,654.28,653.83,0.30588991]
[1740088221821,2.20897346,654.26,653.83,0.30588991]
[1740088223519,1.974,654.43,653.83,0.30588991]
[1740088223715,2.97355969,654.42,653.83,0.30588991]
[1740088223917,2.97355969,654.41,653.83,0.30588991]
[1740088224223,2.97355969,654.4,653.83,0.30588991]
[1740088224422,2.97355969,654.39,653.83,0.30588991]
[1740088224615,2.97355969,654.38,653.83,0.30588991]
[1740088224820,2.97355969,654.37,653.83,0.30588991]
[1740088225021,2.97355969,654.36,653.83,0.30588991]
[1740088225220,2.97355969,654.35,653.83,0.30588991]
[1740088225423,2.97355969,654.34,653.83,0.30588991]
[1740088225622,2.97355969,654.33,653.83,0.30588991]
[1740088225818,2.97355969,654.32,653.83,0.30588991]
[1740088226018,2.97355969,654.31,653.83,0.30588991]
[1740088226220,2.97355969,654.3,653.83,0.30588991]
[1740088226418,2.97355969,654.29,653.83,0.30588991]
[1740088226619,2.21145389,654.32,653.83,0.30588991]
[1740088227423,0.626,654.51,653.83,0.30588991]
[1740088228019,2.2130862,654.5,653.83,0.30588991]
[1740088228625,2.97590886,654.49,653.83,0.30588991]
[1740088228826,2.97590886,654.48,653.83,0.30588991]
[1740088229024,2.97590886,654.47,653.83,0.30588991]
[1740088229226,2.97590886,654.46,653.83,0.30588991]
[1740088229423,2.2130862,654.5,653.83,0.30588991]
[1740088229725,5.18903291,654.49,653.83,0.30588991]
[1740088229919,2.97594671,654.48,653.83,0.30588991]
[1740088230123,2.97594671,654.47,653.83,0.30588991]
[1740088230323,2.97594671,654.46,653.83,0.30588991]
[1740088230519,2.97594233,654.45,653.83,0.30588991]
[1740088230722,2.97594233,654.44,653.83,0.30588991]
[1740088230920,2.97594233,654.43,653.83,0.30588991]
[1740088231123,2.2130862,654.49,653.83,0.30588991]
[1740088231424,2.2130862,654.42,653.83,0.30588991]
[1740088232327,2.97583302,654.41,653.83,0.30588991]
[1740088232526,2.97588941,654.4,653.83,0.30588991]
[1740088232720,2.97588941,654.39,653.83,0.30588991]
[1740088232925,2.97588941,654.38,653.83,0.30588991]
[1740088233122,2.97588941,654.37,653.83,0.30588991]
[1740088233328,2.97588941,654.36,653.83,0.30588991]
[1740088233526,2.97588941,654.35,653.83,0.30588991]
[1740088233720,2.97588941,654.34,653.83,0.30588991]
[1740088233925,2.2130862,654.39,653.83,0.30588991]
[1740088234120,2.97583987,654.38,653.83,0.30588991]
[1740088234322,2.97583987,654.37,653.83,0.30588991]
[1740088234521,2.97583987,654.36,653.83,0.30588991]
[1740088234722,2.97583987,654.35,653.83,0.30588991]
[1740088234923,2.97583987,654.34,653.83,0.30588991]
[1740088235124,2.97583987,654.33,653.83,0.30588991]
[1740088235326,2.97583987,654.32,653.83,0.30588991]
[1740088235627,2.97583987,654.31,653.83,0.30588991]
[1740088235827,2.97583987,654.3,653.83,0.30588991]
[1740088236021,2.2130862,654.34,653.83,0.30588991]
[1740088236222,2.97555193,654.33,653.83,0.30588991]
[1740088236425,2.2130862,654.34,653.83,0.30588991]
[1740088236824,2.571,654.66,653.83,0.30588991]
[1740088237023,2.97501821,654.65,653.83,0.30588991]
[1740088237323,2.97501821,654.64,653.83,0.30588991]
[1740088237528,2.97501821,654.63,653.83,0.30588991]
[1740088237728,2.97501821,654.62,653.83,0.30588991]
[1740088237924,2.571,654.66,653.83,0.30588991]
[1740088237925,2.97501821,654.61,653.83,0.30588991]
[1740088238229,2.97501821,654.6,653.83,0.30588991]
[1740088238428,2.97501821,654.59,653.83,0.30588991]
[1740088238629,2.97501821,654.58,653.83,0.30588991]
[1740088238829,2.97501821,654.57,653.83,0.30588991]
[1740088239131,2.97501821,654.56,653.83,0.30588991]
[1740088239334,2.97501821,654.55,653.83,0.30588991]
[1740088239532,2.97501821,654.54,653.83,0.30588991]
[1740088239729,2.97501821,654.53,653.83,0.30588991]
[1740088239929,2.21211505,654.55,653.83,0.30588991]
[1740088239930,2.97501821,654.52,653.83,0.30588991]
[1740088240130,2.97501821,654.51,653.83,0.30588991]
[1740088240327,2.97501821,654.5,653.83,0.30588991]
[1740088240533,2.97501821,654.49,653.83,0.30588991]
[1740088240825,2.97501821,654.48,653.83,0.30588991]
[1740088241031,2.97501821,654.47,653.83,0.30588991]
[1740088241333,2.97501821,654.46,653.83,0.30588991]
[1740088241532,2.97501821,654.45,653.83,0.30588991]
[1740088241732,2.97501821,654.44,653.83,0.30588991]
[1740088242033,2.97501821,654.43,653.83,0.30588991]
[1740088242227,2.97501821,654.42,653.83,0.30588991]
[1740088242426,2.21211505,654.46,653.88,1.13863774]
[1740088242626,2.97135145,654.45,653.89,0.30586184]
[1740088242830,2.97135145,654.44,653.89,0.30586184]
[1740088243030,2.21211505,654.46,653.89,0.30586184]
[1740088243227,2.97125294,654.45,653.89,0.30586184]
[1740088243431,2.97125294,654.44,653.89,0.30586184]
[1740088243627,2.97077236,654.43,653.89,0.30586184]
[1740088243829,2.20918255,654.44,653.89,0.30586184]
[1740088245432,2.571,654.66,653.89,0.30586184]
[1740088245628,2.96934823,654.65,653.89,0.30586184]
[1740088245832,2.96934823,654.64,653.89,0.30586184]
[1740088246029,2.96934823,654.63,653.89,0.30586184]
[1740088246233,2.96934823,654.62,653.89,0.30586184]
[1740088246435,2.96934823,654.61,653.89,0.30586184]
[1740088246633,2.96934823,654.6,653.89,0.30586184]
[1740088246828,2.96934823,654.59,653.89,0.30586184]
[1740088247029,2.96934823,654.58,653.89,0.30586184]
[1740088247228,2.96934823,654.57,653.89,0.30586184]
[1740088247429,2.96934823,654.56,653.89,0.30586184]
[1740088247633,2.96934823,654.55,653.89,0.30586184]
[1740088247829,2.96934823,654.54,653.89,0.30586184]
[1740088248034,2.96934823,654.53,653.89,0.30586184]
[1740088248232,2.96934823,654.52,653.89,0.30586184]
[1740088248435,2.96934823,654.51,653.89,0.30586184]
[1740088248637,2.96934823,654.5,653.89,0.30586184]
[1740088248837,2.96934823,654.49,653.89,0.30586184]
[1740088249036,2.96934823,654.48,653.89,0.30586184]
[1740088249237,5.17743308,654.47,653.89,0.30586184]